bitfinex-derivatives/quotes_SOLF0:USTF0_20260129
["timestamp","ask_amount","ask_price","bid_price","bid_amount"]
[1769652074563,3.35709115,124.31,124.27,2.48903107]
[1769652077267,3.35709115,124.31,124.28,2.48903107]
[1769652077669,3.35709115,124.31,124.27,2.48903107]
[1769652077968,3.35709115,124.33,124.28,2.48903107]
[1769652078759,10.60649115,124.33,124.28,2.48903107]
[1769652080368,191.58549115,124.35,124.29,2.48903107]
[1769652080767,184.33709115,124.35,124.29,2.48903107]
[1769652081163,7.2488,124.34,124.29,2.48903107]
[1769652081373,5.84612222,124.31,124.25,2.48903107]
[1769652081970,2.48903107,124.3,124.24,5.95663488]
[1769652082371,9.74023107,124.3,124.24,5.95663488]
[1769652083773,2.48903107,124.29,124.24,3.46760381]
[1769652085276,9.74023107,124.3,124.24,3.46760381]
[1769652085777,7.2518,124.29,124.24,3.46760381]
[1769652086680,7.2518,124.29,124.24,5.95663488]
[1769652087382,10.60799115,124.31,124.25,3.58494095]
[1769652087580,5.84612222,124.31,124.25,3.58494095]
[1769652088278,7.2511,124.3,124.25,3.58494095]
[1769652088677,5.84612222,124.31,124.25,3.58494095]
[1769652088882,5.84612222,124.31,124.25,6.07397202]
[1769652089782,5.84612222,124.31,124.25,3.58494095]
[1769652091083,5.84612222,124.31,124.25,6.07397202]
[1769652091276,5.84612222,124.31,124.25,3.58494095]
[1769652092985,5.84612222,124.31,124.25,6.07397202]
[1769652094189,13.09682222,124.31,124.25,3.58494095]
[1769652094485,5.84612222,124.31,124.25,3.58494095]
[1769652094678,10.61141657,124.35,124.29,6.04139908]
[1769652094878,13.10044764,124.35,124.29,6.04139908]
[1769652095086,10.61141657,124.35,124.29,6.04139908]
[1769652095382,13.10044764,124.35,124.29,3.55236801]
[1769652095886,5.85204764,124.37,124.3,6.04139908]
[1769652096480,3.36301657,124.35,124.3,6.04139908]
[1769652097584,2.48903107,124.36,124.3,13.29229908]
[1769652097886,5.85204764,124.37,124.31,2.48903107]
[1769652098080,3.36301657,124.37,124.31,13.29179908]
[1769652098285,3.36301657,124.37,124.31,6.04139908]
[1769652098685,3.36301657,124.37,124.32,2.48903107]
[1769652098887,3.36301657,124.39,124.33,6.04139908]
[1769652099190,2.48903107,124.38,124.33,3.55236801]
[1769652099486,2.48903107,124.38,124.33,10.80156801]
[1769652100887,2.48903107,124.38,124.34,7.2487]
[1769652101188,5.85204764,124.39,124.34,7.2487]
[1769652101988,5.85204764,124.39,124.34,10.80106801]
[1769652102288,2.48903107,124.39,124.35,7.248]
[1769652102484,2.48903107,124.4,124.35,7.248]
[1769652103587,2.48903107,124.39,124.35,7.248]
[1769652105393,2.48903107,124.38,124.34,10.80066801]
[1769652105893,2.48903107,124.39,124.34,10.80066801]
[1769652109288,3.36301657,124.41,124.35,10.80036801]
[1769652109490,5.85204764,124.41,124.36,3.55236801]
[1769652109791,2.48903107,124.41,124.36,3.55236801]
[1769652110996,2.48903107,124.42,124.37,10.79916801]
[1769652112194,3.36301657,124.43,124.37,10.79916801]
[1769652112398,5.85204764,124.43,124.38,3.55236801]
[1769652112796,2.48903107,124.43,124.38,3.55236801]
[1769652113399,2.48903107,124.43,124.39,3.55236801]
[1769652113695,2.48903107,124.44,124.39,3.55236801]
[1769652114294,2.48903107,124.43,124.39,10.79806801]
[1769652114500,3.36301657,124.45,124.39,10.79806801]
[1769652114501,2.48903107,124.44,124.39,10.79806801]
[1769652115396,2.48903107,124.44,124.4,7.2452]
[1769652117096,5.85204764,124.45,124.4,7.2452]
[1769652117602,2.48903107,124.44,124.4,7.2452]
[1769652118903,2.48903107,124.43,124.39,10.79806801]
[1769652119499,2.48903107,124.43,124.39,3.55236801]
[1769652119704,2.48903107,124.41,124.37,10.63825571]
[1769652119905,2.48903107,124.39,124.35,3.39185571]
[1769652120806,3.39285059,124.42,124.35,3.39185571]
[1769652121102,2.48903107,124.4,124.35,10.63985571]
[1769652121295,2.48903107,124.38,124.34,3.39185571]
[1769652121498,2.48903107,124.38,124.31,3.39185571]
[1769652121499,2.48903107,124.36,124.31,3.39185571]
[1769652121810,2.48903107,124.34,124.29,3.39185571]
[1769652122207,2.48903107,124.32,124.29,3.39185571]
[1769652123309,7.2488,124.34,124.29,3.39185571]
[1769652123310,2.48903107,124.31,124.29,3.39185571]
[1769652123507,2.48903107,124.31,124.25,7.2536]
[1769652124106,2.48903107,124.31,124.25,9.74263107]
[1769652124303,3.39285059,124.4,124.29,2.48903107]
[1769652124607,2.48903107,124.36,124.3,2.48903107]
[1769652125308,2.48903107,124.36,124.3,9.73993107]
[1769652125509,2.48903107,124.37,124.3,9.73993107]
[1769652125707,2.48903107,124.37,124.31,3.39185571]
[1769652126210,2.48903107,124.36,124.31,3.39185571]
[1769652127611,10.05569614,124.39,124.31,3.39185571]
[1769652127814,10.05569614,124.39,124.31,10.64215571]
[1769652128114,10.05569614,124.39,124.31,3.39185571]
[1769652128411,3.39285059,124.38,124.31,3.39185571]
[1769652129306,3.39285059,124.38,124.32,7.2497]
[1769652131617,3.39285059,124.38,124.3,10.64245571]
[1769652132114,3.39285059,124.38,124.31,3.39185571]
[1769652133212,3.39285059,124.36,124.29,3.39185571]
[1769652133605,3.39285059,124.34,124.28,7.2517]
[1769652134118,3.39285059,124.34,124.28,10.64355571]
[1769652136520,3.39285059,124.33,124.26,10.64465571]
[1769652136912,10.06034072,124.33,124.26,10.64465571]
[1769652138020,3.39285059,124.36,124.28,3.39185571]
[1769652138716,3.39285059,124.36,124.3,3.39185571]
[1769652139616,3.39285059,124.36,124.3,10.64285571]
[1769652139817,3.39285059,124.38,124.31,3.39185571]
[1769652142323,3.39285059,124.38,124.32,10.64165571]
[1769652143028,3.39285059,124.4,124.33,3.39185571]
[1769652144422,3.39285059,124.4,124.34,7.2484]
[1769652147125,3.39285059,124.4,124.34,10.81549103]
[1769652148432,3.55153619,124.42,124.35,3.56709103]
[1769652148617,3.55153619,124.44,124.36,3.34101547]
[1769652149120,3.55153619,124.44,124.37,10.58791547]
[1769652149522,6.01080508,124.43,124.37,13.07279383]
[1769652149927,6.01080508,124.43,124.38,7.2462]
[1769652150129,2.48487836,124.44,124.38,5.82589383]
[1769652150427,6.01080508,124.45,124.38,5.82589383]
[1769652150830,6.01080508,124.45,124.39,7.2457]
[1769652151131,6.01080508,124.45,124.39,9.73057836]
[1769652152222,6.01080508,124.45,124.39,7.2457]
[1769652154131,6.01080508,124.45,124.39,13.07159383]
[1769652154430,2.48487836,124.46,124.4,3.34101547]
[1769652154727,6.01080508,124.44,124.38,5.82589383]
[1769652155033,6.01080508,124.43,124.37,5.82589383]
[1769652155225,6.01080508,124.43,124.37,3.34101547]
[1769652156924,3.52592672,124.43,124.37,5.82589383]
[1769652158927,7.2429,124.44,124.38,5.82589383]
[1769652160333,3.52592672,124.42,124.36,5.82589383]
[1769652161037,3.52592672,124.42,124.37,3.34101547]
[1769652161533,3.52592672,124.42,124.37,5.82589383]
[1769652161735,2.48487836,124.43,124.37,5.82589383]
[1769652161934,10.76882672,124.44,124.38,5.82589383]
[1769652163431,13.25370508,124.44,124.38,5.82589383]
[1769652166236,6.01080508,124.46,124.4,3.34101547]
[1769652166435,3.52592672,124.46,124.4,5.82589383]
[1769652167430,3.52592672,124.45,124.39,9.73067836]
[1769652167630,6.01080508,124.45,124.39,9.73067836]
[1769652168137,6.01080508,124.45,124.4,7.2452]
[1769652168735,3.52592672,124.45,124.4,7.2452]
[1769652171836,6.01080508,124.45,124.4,7.2452]
[1769652172540,13.25310508,124.45,124.4,7.2452]
[1769652174645,3.52592672,124.45,124.4,7.2452]
[1769652174846,3.52592672,124.45,124.39,13.07159383]
[1769652175148,6.01080508,124.45,124.39,13.07159383]
[1769652175448,6.01080508,124.45,124.39,10.58671547]
[1769652176448,13.25310508,124.45,124.39,10.58671547]
[1769652176848,13.25310508,124.45,124.4,3.46165186]
[1769652178353,3.4840698,124.43,124.38,5.94653022]
[1769652179042,7.2431,124.44,124.39,3.46165186]
[1769652179244,7.2422,124.46,124.4,5.94653022]
[1769652179449,5.96894816,124.47,124.41,5.94653022]
[1769652179850,13.21014816,124.47,124.41,5.94653022]
[1769652180050,187.12869054,124.51,124.42,5.94653022]
[1769652180051,3.4840698,124.49,124.42,5.94653022]
[1769652180243,5.96894816,124.49,124.42,5.94653022]
[1769652180547,5.96894816,124.49,124.43,2.48487836]
[1769652180853,3.4840698,124.48,124.43,2.48487836]
[1769652181357,10.7245698,124.48,124.43,2.48487836]
[1769652181746,10.7245698,124.48,124.42,10.70555186]
[1769652181747,10.7245698,124.48,124.42,13.19043022]
[1769652182848,3.4840698,124.5,124.45,2.48487836]
[1769652183753,3.4840698,124.5,124.45,5.94653022]
[1769652186551,5.96894816,124.52,124.46,5.94653022]
[1769652186750,3.4840698,124.52,124.46,5.94653022]
[1769652186954,5.96894816,124.54,124.48,2.48487836]
[1769652187457,3.4840698,124.53,124.47,5.94653022]
[1769652187654,3.4840698,124.53,124.47,13.18753022]
[1769652187856,3.4840698,124.53,124.47,10.70265186]
[1769652188159,5.96894816,124.53,124.47,10.70265186]
[1769652190152,3.4840698,124.53,124.47,10.70265186]
[1769652190755,5.96894816,124.53,124.47,13.18753022]
[1769652191260,3.4840698,124.53,124.48,3.46165186]
[1769652191560,5.96894816,124.55,124.48,13.18693022]
[1769652192254,5.96894816,124.55,124.49,3.46165186]
[1769652193352,5.96894816,124.54,124.48,2.48487836]
[1769652193545,5.96474265,124.54,124.47,5.94232471]
[1769652193949,2.48067285,124.53,124.48,3.46165186]
[1769652195550,5.96474265,124.54,124.48,5.94232471]
[1769652197259,5.96474265,124.54,124.48,3.46165186]
[1769652199959,2.48067285,124.53,124.48,3.46165186]
[1769652200555,5.96474265,124.54,124.48,10.70215186]
[1769652200861,3.4840698,124.54,124.49,3.46165186]
[1769652201062,5.96474265,124.54,124.49,3.46165186]
[1769652201762,291.9174,124.59,124.5,3.46165186]
[1769652201763,3.4840698,124.56,124.5,3.46165186]
[1769652202060,5.96474265,124.56,124.51,3.46165186]
[1769652202261,2.48067285,124.55,124.51,3.46165186]
[1769652203060,3.4840698,124.56,124.51,3.46165186]
[1769652203061,5.96474265,124.56,124.51,3.46165186]
[1769652204962,3.4840698,124.56,124.51,10.70015186]
[1769652206965,5.96474265,124.56,124.51,10.70015186]
[1769652209155,3.4840698,124.56,124.51,10.70015186]
[1769652209360,13.16812411,124.58,124.52,3.33985411]
[1769652210661,2.48067285,124.57,124.52,3.33985411]
[1769652211861,5.93332411,124.54,124.49,7.2397]
[1769652212174,2.48067285,124.53,124.48,3.33985411]
[1769652213375,2.48067285,124.53,124.48,10.58035411]
[1769652214771,2.48067285,124.53,124.48,3.33985411]
[1769652216074,13.17042411,124.54,124.48,3.33985411]
[1769652216760,5.93332411,124.54,124.48,3.33985411]
[1769652217169,2.48067285,124.53,124.48,3.33985411]
[1769652219971,5.93332411,124.54,124.48,10.58035411]
[1769652220573,2.48067285,124.53,124.48,10.58035411]
[1769652221571,5.93332411,124.54,124.48,10.58035411]
[1769652222576,13.17052411,124.54,124.48,10.58035411]
[1769652224180,2.48067285,124.53,124.48,10.58035411]
[1769652225876,7.42869054,124.57,124.46,3.33985411]
[1769652225877,5.93332411,124.51,124.46,3.33985411]
[1769652226082,5.93332411,124.51,124.44,5.82052696]
[1769652226378,2.48067285,124.5,124.45,3.33985411]
[1769652228182,2.48067285,124.49,124.45,3.33985411]
[1769652228482,2.48067285,124.49,124.45,10.58205411]
[1769652229280,2.48067285,124.5,124.45,10.58205411]
[1769652235386,2.48067285,124.51,124.47,3.53364265]
[1769652236180,2.48067285,124.52,124.47,3.53364265]
[1769652236885,5.99983254,124.52,124.47,3.53364265]
[1769652238188,5.99983254,124.54,124.48,10.77414265]
[1769652239382,13.23683254,124.54,124.48,10.77414265]
[1769652239580,5.99983254,124.54,124.49,7.2399]
[1769652240888,5.99983254,124.56,124.5,3.53364265]
[1769652241688,5.99983254,124.55,124.5,3.53364265]
[1769652243185,3.51915969,124.55,124.5,3.53364265]
[1769652243395,3.51915969,124.55,124.5,10.77264265]
[1769652243797,5.99983254,124.57,124.51,3.53364265]
[1769652243996,5.99983254,124.57,124.52,7.2381]
[1769652245298,5.99983254,124.57,124.52,10.77174265]
[1769652245998,13.23513254,124.57,124.52,3.53364265]
[1769652253618,13.2336637,124.57,124.52,3.53364265]
[1769652257518,10.75445969,124.57,124.52,3.53364265]
[1769652257718,13.2336637,124.57,124.52,3.53364265]
[1769652260424,10.75445969,124.57,124.52,10.77174265]
[1769652261624,3.51915969,124.56,124.52,3.53364265]
[1769652264828,13.2331637,124.58,124.53,3.53364265]
[1769652266331,2.47920401,124.57,124.53,3.53364265]
[1769652268630,5.84692663,124.57,124.53,3.53364265]
[1769652269726,5.84692663,124.57,124.53,10.77124265]
[1769652270825,5.84692663,124.57,124.53,3.53364265]
[1769652271828,3.36772262,124.55,124.51,7.2387]
[1769652272028,5.84692663,124.54,124.49,3.41274381]
[1769652272233,2.47920401,124.53,124.49,3.41274381]
[1769652272421,5.84692663,124.51,124.45,5.89194782]
[1769652272933,5.84692663,124.51,124.46,10.65434381]
[1769652276037,3.36772262,124.51,124.46,10.65434381]
[1769652278739,2.47920401,124.52,124.47,10.65374381]
[1769652278936,5.84692663,124.53,124.48,3.41274381]
[1769652280841,3.36772262,124.52,124.47,7.241]
[1769652282042,5.84692663,124.52,124.47,10.65374381]
[1769652283840,3.36772262,124.52,124.47,10.65374381]
[1769652284842,2.47920401,124.53,124.48,3.41274381]
[1769652285043,5.84692663,124.53,124.48,3.41274381]
[1769652290949,9.71630401,124.54,124.49,3.41274381]
[1769652292447,13.08402663,124.54,124.49,10.65254381]
[1769652298856,5.84692663,124.54,124.49,10.65254381]
[1769652299666,3.36772262,124.54,124.49,10.65254381]
[1769652300056,2.47920401,124.55,124.5,3.44743743]
[1769652300257,3.53254849,124.56,124.51,5.92664144]
[1769652300553,3.53254849,124.55,124.49,5.92664144]
[1769652300752,6.0117525,124.54,124.49,3.44743743]
[1769652301348,6.0117525,124.52,124.48,17.0]
[1769652301663,3.53254849,124.51,124.46,3.44743743]
[1769652302056,3.53254849,124.51,124.46,10.68863743]
[1769652302258,6.0117525,124.51,124.46,10.68863743]
[1769652302554,6.0117525,124.51,124.43,112.6736]
[1769652302555,2.47920401,124.48,124.42,3.44743743]
[1769652302760,112.5981,124.52,124.4,3.44743743]
[1769652302761,2.47920401,124.45,124.4,3.44743743]
[1769652302965,2.47920401,124.44,124.39,7.2455]
[1769652303260,2.47920401,124.43,124.38,3.44743743]
[1769652303857,6.0117525,124.43,124.38,3.44743743]
[1769652305159,3.53254849,124.41,124.35,2.47920401]
[1769652305365,6.0117525,124.41,124.35,2.47920401]
[1769652305558,3.53254849,124.41,124.35,2.47920401]
[1769652306264,6.0117525,124.43,124.36,5.92664144]
[1769652306763,3.53254849,124.42,124.36,5.92664144]
[1769652308857,3.53254849,124.42,124.36,13.17384144]
[1769652309456,3.53254849,124.42,124.37,5.92664144]
[1769652309654,3.53254849,124.44,124.38,5.92664144]
[1769652309853,3.53254849,124.44,124.39,2.47920401]
[1769652310564,3.53254849,124.44,124.4,2.47920401]
[1769652310768,3.53254849,124.44,124.39,5.92664144]
[1769652313060,9.72120401,124.46,124.36,112.7367]
[1769652313061,3.53254849,124.46,124.41,5.92664144]
[1769652313263,3.53254849,124.46,124.41,2.47920401]
[1769652314963,3.53254849,124.45,124.38,7.2461]
[1769652315259,3.53254849,124.42,124.36,5.92664144]
[1769652315656,3.53254849,124.42,124.37,2.4853293]
[1769652315963,3.53254849,124.44,124.38,9.7314293]
[1769652316867,3.53254849,124.44,124.39,9.7310293]
[1769652317165,3.53254849,124.44,124.4,2.4853293]
[1769652318268,3.53254849,124.46,124.41,2.4853293]
[1769652318969,3.53254849,124.48,124.43,2.4853293]
[1769652319267,3.53254849,124.48,124.42,5.93276673]
[1769652319464,3.53254849,124.46,124.42,2.4853293]
[1769652319765,3.53254849,124.46,124.41,2.4853293]
[1769652320761,3.53254849,124.46,124.42,2.4853293]
[1769652323967,3.53254849,124.45,124.41,2.4853293]
[1769652324771,3.53254849,124.44,124.4,2.4853293]
[1769652324969,3.53254849,124.44,124.38,2.4853293]
[1769652325273,2.4853293,124.45,124.36,3.27573962]
[1769652325274,5.71454377,124.43,124.36,5.76106892]
[1769652326472,12.95794377,124.43,124.36,13.00856892]
[1769652326673,5.71454377,124.43,124.36,5.76106892]
[1769652327061,3.22921447,124.43,124.37,2.4853293]
[1769652328374,3.22921447,124.42,124.37,7.2469]
[1769652330072,2.4853293,124.43,124.37,10.53568327]
[1769652330262,13.11681613,124.44,124.37,13.02101257]
[1769652331368,3.38858683,124.43,124.37,13.02101257]
[1769652332475,13.11751613,124.43,124.37,3.28878327]
[1769652334074,13.11751613,124.43,124.37,10.53568327]
[1769652335678,5.87391613,124.43,124.37,10.53568327]
[1769652336377,5.87391613,124.43,124.37,13.02101257]
[1769652341483,3.38858683,124.42,124.37,10.53568327]
[1769652343687,5.87391613,124.42,124.37,10.53568327]
[1769652345493,3.38858683,124.42,124.37,10.53568327]
[1769652345894,2.4853293,124.43,124.37,7.2469]
[1769652346192,5.87391613,124.43,124.38,3.28878327]
[1769652347600,13.11631613,124.45,124.39,3.28878327]
[1769652347792,10.63098683,124.45,124.39,5.77411257]
[1769652348292,10.63098683,124.45,124.39,10.53438327]
[1769652349399,13.11631613,124.45,124.39,10.53438327]
[1769652350901,3.38858683,124.45,124.4,10.53368327]
[1769652351102,3.38858683,124.45,124.4,3.28878327]
[1769652352392,3.38858683,124.45,124.41,7.2446]
[1769652352604,5.87391613,124.45,124.4,3.28878327]
[1769652353304,5.87391613,124.45,124.4,10.53388327]
[1769652353900,7.2417,124.46,124.41,3.28878327]
[1769652354107,13.11511613,124.47,124.41,3.28878327]
[1769652354702,3.38858683,124.47,124.41,13.01841257]
[1769652355206,9.7259293,124.48,124.41,13.01841257]
[1769652355207,9.7259293,124.48,124.42,3.46839746]
[1769652355406,13.22342073,124.48,124.42,3.46839746]
[1769652356708,7.2411,124.47,124.42,3.46839746]
[1769652359613,5.98282073,124.48,124.42,13.19762676]
[1769652360709,3.49749143,124.48,124.43,10.71179746]
[1769652360914,7.2404,124.49,124.45,3.46839746]
[1769652361111,10.73679143,124.51,124.46,5.95372676]
[1769652361307,7.2393,124.51,124.46,5.95372676]
[1769652361504,7.2382,124.52,124.47,2.4853293]
[1769652361709,3.49749143,124.53,124.48,2.4853293]
[1769652364013,7.237,124.54,124.48,13.19422676]
[1769652364205,10.73449143,124.54,124.48,13.19422676]
[1769652365915,10.73509143,124.53,124.47,2.4853293]
[1769652366116,10.73509143,124.53,124.47,5.95372676]
[1769652366815,3.49749143,124.53,124.47,13.19482676]
[1769652369216,3.49749143,124.55,124.5,5.95372676]
[1769652369717,3.49749143,124.55,124.5,3.46839746]
[1769652369919,3.49749143,124.55,124.5,10.70769746]
[1769652370416,3.49749143,124.57,124.52,2.4853293]
[1769652370617,3.49749143,124.57,124.52,5.95372676]
[1769652371515,3.49749143,124.57,124.52,13.19182676]
[1769652371712,3.49749143,124.57,124.52,5.95372676]
[1769652371912,3.49749143,124.57,124.48,112.6282]
[1769652371913,5.98282073,124.56,124.5,3.46839746]
[1769652372114,3.49749143,124.55,124.49,5.95372676]
[1769652372607,5.98282073,124.57,124.5,13.19302676]
[1769652372811,5.98282073,124.57,124.51,5.95372676]
[1769652373010,3.49749143,124.57,124.51,5.95372676]
[1769652374315,5.98282073,124.57,124.51,10.70699746]
[1769652375621,5.97703669,124.57,124.51,10.70699746]
[1769652378918,5.97703669,124.57,124.52,3.46839746]
[1769652381626,5.97703669,124.57,124.52,10.70649746]
[1769652382718,3.49749143,124.54,124.5,7.2388]
[1769652383417,5.97703669,124.54,124.49,3.46839746]
[1769652384325,5.97703669,124.54,124.49,10.70829746]
[1769652386123,3.49749143,124.54,124.49,10.70829746]
[1769652386434,3.49749143,124.54,124.49,3.46839746]
[1769652387124,10.73449143,124.54,124.49,3.46839746]
[1769652388828,3.49749143,124.54,124.49,3.46839746]
[1769652389327,2.47954526,124.55,124.5,3.52626988]
[1769652390331,5.7098772,124.55,124.5,3.52626988]
[1769652391931,12.9465772,124.55,124.5,3.52626988]
[1769652392326,2.47954526,124.54,124.5,3.52626988]
[1769652393535,2.47954526,124.54,124.5,10.76556988]
[1769652395629,12.9465772,124.55,124.5,10.76556988]
[1769652396736,2.47954526,124.54,124.5,10.76556988]
[1769652397439,12.9465772,124.55,124.5,10.76556988]
[1769652402543,12.9456772,124.57,124.52,3.52626988]
[1769652403641,5.7098772,124.57,124.52,10.76446988]
[1769652403843,2.47954526,124.6,124.54,3.52626988]
[1769652404041,3.23033194,124.61,124.56,3.52626988]
[1769652404239,2.47954526,124.62,124.56,13.24111514]
[1769652404443,2.47954526,124.62,124.57,3.52626988]
[1769652404831,3.23033194,124.62,124.57,3.52626988]
[1769652406143,3.23033194,124.62,124.57,10.76146988]
[1769652406343,2.47954526,124.63,124.57,10.76146988]
[1769652406344,12.9410772,124.64,124.57,13.24101514]
[1769652408147,5.7098772,124.64,124.58,6.00581514]
[1769652408545,3.23033194,124.64,124.59,3.52626988]
[1769652408748,3.23033194,124.64,124.59,10.76036988]
[1769652409043,8.60250391,124.65,124.6,3.52626988]
[1769652409252,8.60250391,124.65,124.61,3.52626988]
[1769652410349,8.60250391,124.65,124.61,10.75906988]
[1769652410949,8.60250391,124.65,124.59,7.2336]
[1769652411145,8.60250391,124.65,124.6,3.52626988]
[1769652412449,8.60250391,124.65,124.6,10.75966988]
[1769652412655,8.60250391,124.65,124.6,13.23921514]
[1769652413355,8.60250391,124.65,124.61,10.75916988]
[1769652413551,3.23033194,124.68,124.63,2.47954526]
[1769652413946,3.23033194,124.68,124.63,9.71124526]
[1769652415247,3.23033194,124.68,124.63,13.25592893]
[1769652415961,3.3945823,124.66,124.61,3.54468367]
[1769652416655,2.47954526,124.67,124.61,3.54468367]
[1769652417045,2.47954526,124.67,124.61,6.02422893]
[1769652417553,5.87412756,124.66,124.61,3.54468367]
[1769652420952,3.3945823,124.65,124.59,3.54468367]
[1769652421258,5.87412756,124.65,124.59,3.54468367]
[1769652421648,5.87412756,124.65,124.59,10.77868367]
[1769652421845,5.87412756,124.64,124.57,6.02422893]
[1769652422050,2.47954526,124.63,124.57,6.02422893]
[1769652423462,2.47954526,124.63,124.58,3.54468367]
[1769652424461,2.47954526,124.63,124.58,10.77938367]
[1769652425460,2.47954526,124.61,124.56,10.77998367]
[1769652425759,5.87412756,124.61,124.56,10.77998367]
[1769652426253,5.87412756,124.6,124.54,3.54468367]
[1769652426764,2.47954526,124.59,124.54,10.78168367]
[1769652427059,2.47954526,124.59,124.54,7.237]
[1769652427060,2.47954526,124.58,124.54,7.237]
[1769652427449,2.47954526,124.58,124.54,10.78168367]
[1769652427652,7.233,124.61,124.56,3.54468367]
[1769652427653,2.47954526,124.61,124.56,3.54468367]
[1769652427957,3.3945823,124.63,124.56,3.54468367]
[1769652428158,2.47954526,124.61,124.56,3.54468367]
[1769652428561,5.87412756,124.59,124.52,6.02422893]
[1769652428859,5.87412756,124.59,124.53,3.54468367]
[1769652429760,3.3945823,124.59,124.53,3.54468367]
[1769652429961,5.87412756,124.59,124.53,3.54468367]
[1769652430156,2.47954526,124.59,124.53,3.54468367]
[1769652430354,2.47954526,124.6,124.54,3.54468367]
[1769652430755,5.87412756,124.6,124.54,3.54468367]
[1769652432360,5.87412756,124.6,124.54,10.78168367]
[1769652434050,3.3945823,124.6,124.55,3.54468367]
[1769652436560,10.6269823,124.62,124.56,3.54468367]
[1769652436862,13.10494277,124.62,124.56,3.54468367]
[1769652437064,10.6269823,124.62,124.56,6.02264414]
[1769652437263,10.6269823,124.62,124.56,13.25844414]
[1769652440258,3.3945823,124.61,124.56,13.25844414]
[1769652441764,3.3945823,124.61,124.56,10.78048367]
[1769652441961,5.87254277,124.6,124.55,7.2364]
[1769652442262,3.3945823,124.57,124.5,3.54468367]
[1769652442467,5.87254277,124.56,124.5,3.54468367]
[1769652442864,5.87254277,124.56,124.5,10.78378367]
[1769652443063,3.3945823,124.56,124.5,13.26174414]
[1769652443458,5.87254277,124.56,124.5,10.78378367]
[1769652443659,3.3945823,124.55,124.5,3.54468367]
[1769652443865,5.87254277,124.55,124.48,13.26294414]
[1769652444673,2.47796047,124.54,124.48,13.26294414]
[1769652444969,2.47796047,124.54,124.49,3.54468367]
[1769652445564,5.87254277,124.55,124.49,3.54468367]
[1769652446270,5.87254277,124.55,124.49,13.26244414]
[1769652446571,3.3945823,124.55,124.49,13.26244414]
[1769652447369,2.47796047,124.54,124.49,3.54468367]
[1769652447562,3.53702977,124.53,124.48,5.90334966]
[1769652447762,13.25159024,124.55,124.48,5.90334966]
[1769652447970,13.25159024,124.55,124.48,3.42538919]
[1769652448269,13.25159024,124.55,124.48,5.90334966]
[1769652448470,13.25159024,124.55,124.48,13.14384966]
[1769652448664,13.25159024,124.55,124.48,10.66588919]
[1769652448862,13.25159024,124.55,124.49,2.47796047]
[1769652449271,6.01499024,124.55,124.49,2.47796047]
[1769652450671,3.53702977,124.55,124.49,2.47796047]
[1769652451372,3.53702977,124.55,124.49,5.8226246]
[1769652452065,6.01499024,124.55,124.49,5.8226246]
[1769652452272,3.41418801,124.53,124.47,2.47796047]
[1769652452671,3.41418801,124.53,124.47,5.8226246]
[1769652453270,3.41418801,124.53,124.47,13.0635246]
[1769652456580,3.41418801,124.53,124.48,9.71836047]
[1769652456772,3.41418801,124.53,124.49,2.47796047]
[1769652456972,3.41418801,124.53,124.48,9.71836047]
[1769652458879,3.41418801,124.53,124.48,13.0630246]
[1769652463281,3.41418801,124.53,124.48,10.58506413]
[1769652463672,3.41418801,124.53,124.48,7.2404]
[1769652463872,5.89214848,124.51,124.44,5.8226246]
[1769652464272,3.41418801,124.51,124.45,5.8226246]
[1769652464775,13.12974848,124.53,124.47,3.34466413]
[1769652465473,3.41418801,124.52,124.47,3.34466413]
[1769652465982,3.41418801,124.52,124.47,5.8226246]
[1769652466375,3.41418801,124.52,124.47,3.34466413]
[1769652466576,3.41418801,124.52,124.46,2.47796047]
[1769652467280,3.41418801,124.52,124.46,9.71966047]
[1769652468980,3.41418801,124.52,124.46,13.0643246]
[1769652472590,10.65128801,124.54,124.48,5.8226246]
[1769652472885,5.89214848,124.53,124.47,2.47796047]
[1769652473080,5.89214848,124.53,124.46,5.8226246]
[1769652473480,3.41418801,124.53,124.47,5.8226246]
[1769652474286,3.41418801,124.52,124.47,13.0636246]
[1769652476683,3.25198194,124.5,124.44,5.79166589]
[1769652476886,3.25198194,124.47,124.39,112.7112]
[1769652477074,12.97104241,124.47,124.41,7.2445]
[1769652477386,3.25198194,124.46,124.4,5.79166589]
[1769652477582,5.72994241,124.46,124.4,5.79166589]
[1769652478178,3.25198194,124.46,124.4,5.79166589]
[1769652478379,10.49368194,124.46,124.4,13.03686589]
[1769652478785,3.25198194,124.46,124.4,13.03686589]
[1769652479482,3.25198194,124.48,124.42,5.79166589]
[1769652479882,3.25198194,124.48,124.43,2.47796047]
[1769652480382,10.49258194,124.48,124.43,2.47796047]
[1769652481285,10.49258194,124.48,124.42,13.03556589]
[1769652482687,3.25198194,124.47,124.42,10.55760542]
[1769652482886,3.25198194,124.46,124.4,13.03636589]
[1769652483392,3.25198194,124.46,124.41,2.47796047]
[1769652484080,3.25198194,124.46,124.41,5.79166589]
[1769652484284,3.25198194,124.48,124.42,13.03556589]
[1769652486386,10.49248194,124.48,124.42,13.03556589]
[1769652486994,172.92,124.5,124.45,2.47796047]
[1769652487794,176.17198194,124.5,124.45,2.47796047]
[1769652488092,3.25198194,124.5,124.45,2.47796047]